[Event "Guimaraes Open 2019"]
[Site "Guimaraes"]
[Date "2019.08.28"]
[Round "1.9"]
[White "Schou, Bjorn A"]
[Black "Prado Acebo, Ines"]
[Result "1-0"]
[ECO "E06"]
[WhiteElo "1257"]
[BlackElo "2142"]
[Annotator "ChessBase"]
[PlyCount "67"]
[EventDate "2019.08.28"]
[EventType "swiss"]
[EventCountry "POR"]
[SourceTitle "playchess.com"]
[Source "ChessBase"]
[SourceQuality "1"]
[TimeControl "5400+30"]

1. d4 {[%emt 0:00:00]} Nf6 {[%emt 0:00:00]} 2. c4 {[%emt 0:00:00]} e6 {[%emt 0:00:00]} 3. Nf3 {[%emt 0:00:00]} d5 {[%emt 0:00:00]} 4. g3 {[%emt 0:00:16]} Be7 {[%emt 0:00:02]} 5. Bg2 {[%emt 0:00:07]} O-O {[%emt 0:00:07]} 6. O-O {[%emt 0:01:33]} dxc4 {[%emt 0:00:20]} 7. Qc2 {[%emt 0:00:20]} a6 {[%emt 0:01:16]} 8. a4 {[%emt 0:00:08]} Bd7 {[%emt 0:01:17]} 9. Rd1 {[%emt 0:00:10]} Bc6 {[%emt 0:02:17]} 10. Nc3 {[%emt 0:00:07]} Nd5 {[%emt 0:05:19]} 11. e4 {[%emt 0:02:03]} Nxc3 {[%emt 0:06:01]} 12. bxc3 {[%emt 0:00:03]} b5 {[%emt 0:00:16]} 13. d5 {[%emt 0:02:58]} Bb7 {[%emt 0:04:17]} 14. Nd4 {[%emt 0:08:08]} Qe8 {[%emt 0:08:18]} 15. dxe6 {[%emt 0:03:22]} Nc6 {[%emt 0:05:38]} 16. exf7+ {[%emt 0:01:03]} Qxf7 {[%emt 0:00:44]} 17. Nf5 {[%emt 0:07:03]} Bc5 {[%emt 0:02:10]} 18. Bh6 {[%emt 0:01:19]} Qg6 {[%emt 0:01:31]} 19. axb5 {[%emt 0:12:09]} axb5 {[%emt 0:03:00]} 20. Rxa8 {[%emt 0:00:08]} Bxa8 {[%emt 0:01:00]} 21. Bxg7 {[%emt 0:01:07]} Rxf5 {[%emt 0:10:13]} 22. exf5 {[%emt 0:00:03]} Qxg7 {[%emt 0:00:06]} 23. Bd5+ {[%emt 0:00:27]} Kf8 {[%emt 0:03:55]} 24. Qe4 {[%emt 0:02:38]} Qe7 {[%emt 0:02:17]} 25. Qg4 {[%emt 0:01:42]} Qg7 {[%emt 0:00:05]} 26. Qh5 {[%emt 0:02:06]} Be7 {[%emt 0:06:01]} 27. Re1 {[%emt 0:01:24]} Bb7 {[%emt 0:05:15]} 28. f6 {[%emt 0:01:07]} Qxf6 {[%emt 0:00:55]} 29. Qxh7 {[%emt 0:02:06]} Ke8 {[%emt 0:03:42]} 30. Re6 {[%emt 0:02:11]} Qf8 {[%emt 0:00:16]} 31. Rxc6 {[%emt 0:04:04]} Kd8 {[%emt 0:04:29]} 32. Qh3 {[%emt 0:02:38]} b4 {[%emt 0:03:36]} 33. cxb4 {[%emt 0:02:24]} Bxb4 {[%emt 0:00:43]} 34. Rh6 {[%emt 0:09:46]} 1-0

[Event "Guimaraes Open 2019"]
[Site "Guimaraes"]
[Date "2019.08.28"]
[Round "1.14"]
[White "Fernandes, Miguel A. Murtinho"]
[Black "Veiga, Jose Francisco R P N"]
[Result "1-0"]
[ECO "A61"]
[WhiteElo "2108"]
[BlackElo "2346"]
[Annotator "RC"]
[PlyCount "83"]
[EventDate "2019.08.28"]
[EventType "swiss"]
[EventCountry "POR"]
[SourceTitle "playchess.com"]
[Source "ChessBase"]
[SourceQuality "1"]
[TimeControl "5400+30"]

1. d4 {[%emt 0:00:00]} Nf6 {[%emt 0:00:00]} 2. c4 {[%emt 0:00:00]} c5 {[%emt 0:00:37]} 3. d5 {[%emt 0:00:00]} e6 {[%emt 0:00:04]} 4. Nc3 {[%emt 0:00:00]} exd5 {[%emt 0:00:04]} 5. cxd5 {[%emt 0:00:04]} d6 {[%emt 0:00:06]} 6. Nf3 {[%emt 0:00:12]} g6 {[%emt 0:00:09]} 7. Nd2 {[%emt 0:00:10]} Nbd7 {[%emt 0:00:04]} 8. e4 {[%emt 0:00:30]} Bg7 {[%emt 0:00:04]} 9. Be2 {[%emt 0:00:48]} O-O {[%emt 0:00:06]} 10. O-O {[%emt 0:00:21]} Re8 {[%emt 0:00:07]} 11. Qc2 {[%emt 0:01:05]} Ne5 {[%emt 0:00:22]} 12. a4 {[%emt 0:02:25]} Bg4 {[%emt 0:00:21]} 13. Bxg4 {[%emt 0:05:05]} Nfxg4 {[%emt 0:09:27]} 14. h3 {[%emt 0:04:45]} Nh6 {[%emt 0:05:23]} 15. f4 {[%emt 0:02:11]} Nd7 {[%emt 0:01:11]} 16. Nf3 {[%emt 0:06:00]} f5 {[%emt 0:07:03]} 17. Ng5 {[%emt 0:05:52]} Nf8 {[%emt 0:04:00]} 18. Bd2 {[%emt 0:02:37]} fxe4 {[%emt 0:00:51]} 19. Ncxe4 {[%emt 0:04:58]} Nf5 {[%emt 0:13:32]} 20. Rae1 {[%emt 0:07:50]} Qb6 {[%emt 0:03:55]} 21. a5 {[%emt 0:18:53]} Qa6 {[%emt 0:02:29]} 22. Qa4 {[%emt 0:03:43]} b5 {[%emt 0:10:53]} 23. Qd1 {[%emt 0:03:53]} h6 24. g4 Ne7 {[%emt 0:07:27]} 25. f5 {[%emt 0:05:34]} Bd4+ {[%emt 0:07:27]} 26. Be3 {[%emt 0:02:06]} Nxd5 {[%emt 0:04:07]} 27. Bxd4 {[%emt 0:08:43]} hxg5 {[%emt 0:02:18]} 28. Bf6 {[%emt 0:00:36]} Qc6 {[%emt 0:00:27]} 29. Bxg5 {[%emt 0:06:50]} Nh7 {[%emt 0:05:25]} 30. Bh6 gxf5 {[%emt 0:00:33]} 31. Rxf5 {[%emt 0:02:22]} Re5 32. Qf3 {[%emt 0:01:47]} Rae8 {[%emt 0:06:15]} 33. Rf7 R5e7 {[%emt 0:02:00]} 34. Rxe7 {[%emt 0:00:43]} Rxe7 {[%emt 0:01:32]} 35. Nf6+ {[%emt 0:01:19]} Kh8 {[%emt 0:00:00]} 36. Rxe7 {[%emt 0:01:49]} Nxe7 {[%emt 0:00:02]} 37. Qe3 Nxf6 {[%emt 0:05:24]} 38. Qxe7 {[%emt 0:02:40]} Ne8 39. g5 d5 {[%emt 0:00:41]} 40. Qf7 {[%emt 0:01:59]} d4 {[%emt 0:02:34]} 41. g6 {[%emt 0:00:29]} Qe4 {[%emt 0:00:02]} 42. Qh7# 1-0

[Event "Guimaraes Open 2019"]
[Site "Guimaraes"]
[Date "2019.08.28"]
[Round "1.18"]
[White "Pintor, Simao Maciel Abranch"]
[Black "Nieves Cabanes, Jose Manuel"]
[Result "0-1"]
[ECO "A05"]
[WhiteElo "2076"]
[BlackElo "2311"]
[Annotator "RC"]
[PlyCount "104"]
[EventDate "2019.08.28"]
[EventType "swiss"]
[EventCountry "POR"]
[SourceTitle "playchess.com"]
[Source "ChessBase"]
[SourceQuality "1"]
[TimeControl "5400+30"]

1. Nf3 {[%emt 0:00:00]} Nf6 {[%emt 0:00:12]} 2. g3 {[%emt 0:00:00]} b6 {[%emt 0:00:33]} 3. Bg2 {[%emt 0:00:00]} Bb7 {[%emt 0:00:02]} 4. b3 {[%emt 0:00:09]} c5 {[%emt 0:03:02]} 5. c4 {[%emt 0:00:10]} e6 {[%emt 0:00:39]} 6. O-O {[%emt 0:01:38]} Be7 {[%emt 0:02:47]} 7. Bb2 {[%emt 0:00:12]} O-O {[%emt 0:00:36]} 8. d4 {[%emt 0:03:00]} cxd4 {[%emt 0:00:27]} 9. Qxd4 {[%emt 0:00:10]} Nc6 {[%emt 0:01:37]} 10. Qf4 {[%emt 0:00:10]} d5 {[%emt 0:02:58]} 11. Rd1 {[%emt 0:08:26]} Qb8 {[%emt 0:06:56]} 12. Qxb8 {[%emt 0:10:15]} Raxb8 {[%emt 0:00:11]} 13. Na3 {[%emt 0:06:45]} Rfd8 {[%emt 0:06:47]} 14. cxd5 {[%emt 0:04:35]} Nxd5 {[%emt 0:02:52]} 15. Nc4 {[%emt 0:00:45]} f6 {[%emt 0:05:15]} 16. Rac1 {[%emt 0:11:47]} b5 {[%emt 0:02:29]} 17. Ncd2 {[%emt 0:00:06]} Ncb4 {[%emt 0:07:26]} 18. a3 {[%emt 0:15:49]} Na2 {[%emt 0:00:59]} 19. Rc2 {[%emt 0:00:38]} b4 {[%emt 0:09:49]} 20. axb4 {[%emt 0:04:36]} Ndxb4 {[%emt 0:00:32]} 21. Rc4 {[%emt 0:06:24]} Bd5 {[%emt 0:04:48]} 22. Rc7 {[%emt 0:00:26]} Bxb3 {[%emt 0:03:19]} 23. Rxe7 {[%emt 0:06:08]} Bxd1 {[%emt 0:00:29]} 24. Rxa7 {[%emt 0:03:58]} Bxe2 {[%emt 0:05:30]} 25. Bh3 {[%emt 0:02:07]} Rb6 {[%emt 0:06:33]} 26. Nd4 {[%emt 0:03:43]} e5 {[%emt 0:02:03]} 27. Be6+ {[%emt 0:01:42]} Kh8 {[%emt 0:01:56]} 28. Nxe2 {[%emt 0:04:30]} Rxe6 {[%emt 0:01:01]} 29. Ne4 {[%emt 0:01:14]} h5 {[%emt 0:01:58]} 30. h3 {[%emt 0:00:18]} Rc6 {[%emt 0:01:10]} 31. N2c3 {[%emt 0:04:19]} Nxc3 {[%emt 0:00:24]} 32. Bxc3 {[%emt 0:00:16]} Rc4 {[%emt 0:01:31]} 33. Bxb4 {[%emt 0:00:40]} Rxe4 {[%emt 0:00:18]} 34. Rb7 {[%emt 0:00:54]} Rd1+ {[%emt 0:00:25]} 35. Kg2 {[%emt 0:00:06]} Rb1 {[%emt 0:00:21]} 36. Rb8+ {[%emt 0:00:04]} Kh7 {[%emt 0:00:04]} 37. Bd6 {[%emt 0:00:04]} Rxb8 {[%emt 0:00:11]} 38. Bxb8 {[%emt 0:00:03]} Ra4 {[%emt 0:00:32]} 39. h4 {[%emt 0:00:19]} Kg6 {[%emt 0:00:44]} 40. Bd6 {[%emt 0:00:11]} Kf5 {[%emt 0:00:18]} 41. Bf8 {[%emt 0:00:07]} g6 {[%emt 0:00:27]} 42. Be7 {[%emt 0:00:27]} Ra6 {[%emt 0:01:29]} 43. Bc5 {[%emt 0:00:14]} Ke4 {[%emt 0:00:08]} 44. Be3 {[%emt 0:00:06]} Ra2 {[%emt 0:00:54]} 45. Bh6 {[%emt 0:00:09]} f5 {[%emt 0:03:01]} 46. Bg5 {[%emt 0:00:04]} f4 {[%emt 0:00:03]} 47. gxf4 {[%emt 0:00:13]} exf4 {[%emt 0:00:05]} 48. Be7 {[%emt 0:00:18]} f3+ {[%emt 0:00:49]} 49. Kg3 {[%emt 0:00:03]} Ra1 {[%emt 0:00:10]} 50. Bc5 {[%emt 0:00:27]} Rg1+ {[%emt 0:00:13]} 51. Kh2 {[%emt 0:00:17]} Rg2+ {[%emt 0:00:45]} 52. Kh3 {[%emt 0:00:07]} Kd3 {[%emt 0:00:15]} 0-1

[Event "Guimaraes Open 2019"]
[Site "Guimaraes"]
[Date "2019.08.28"]
[Round "1.20"]
[White "Sismeiro, Miguel"]
[Black "Alonso Garcia, Aaron"]
[Result "0-1"]
[ECO "B08"]
[WhiteElo "2054"]
[BlackElo "2291"]
[Annotator "ChessBase"]
[PlyCount "104"]
[EventDate "2019.08.28"]
[EventType "swiss"]
[EventCountry "POR"]
[SourceTitle "playchess.com"]
[Source "ChessBase"]
[SourceQuality "1"]
[TimeControl "5400+30"]

1. e4 {[%emt 0:00:00]} g6 {[%emt 0:00:51]} 2. d4 {[%emt 0:00:09]} Bg7 {[%emt 0:00:24]} 3. Nc3 {[%emt 0:00:06]} d6 {[%emt 0:00:25]} 4. Nf3 {[%emt 0:02:00]} Nf6 {[%emt 0:02:04]} 5. Be2 {[%emt 0:03:33]} a6 {[%emt 0:01:50]} 6. a4 {[%emt 0:00:28]} O-O {[%emt 0:01:32]} 7. O-O {[%emt 0:00:30]} b6 {[%emt 0:05:47]} 8. e5 {[%emt 0:16:45]} Nfd7 {[%emt 0:07:32]} 9. e6 {[%emt 0:13:05]} fxe6 {[%emt 0:00:31]} 10. Ng5 {[%emt 0:00:09]} Nf6 {[%emt 0:01:04]} 11. Bf3 {[%emt 0:00:22]} d5 {[%emt 0:03:01]} 12. Re1 {[%emt 0:36:06]} Qd6 {[%emt 0:01:34]} 13. Qe2 {[%emt 0:08:43]} Nc6 {[%emt 0:02:56]} 14. Nxe6 {[%emt 0:00:36]} Bxe6 {[%emt 0:00:27]} 15. Qxe6+ {[%emt 0:02:23]} Qxe6 {[%emt 0:00:35]} 16. Rxe6 {[%emt 0:00:06]} Nxd4 {[%emt 0:00:03]} 17. Rxf6 {[%emt 0:03:58]} Bxf6 {[%emt 0:02:54]} 18. Bxd5+ {[%emt 0:00:04]} Kg7 {[%emt 0:00:34]} 19. Bxa8 {[%emt 0:03:46]} Rxa8 {[%emt 0:00:07]} 20. Bf4 {[%emt 0:00:30]} e5 {[%emt 0:03:39]} 21. Bg3 {[%emt 0:02:54]} Nxc2 {[%emt 0:00:06]} 22. Rd1 {[%emt 0:00:04]} Nd4 {[%emt 0:00:19]} 23. f4 {[%emt 0:03:13]} exf4 {[%emt 0:03:38]} 24. Bxf4 {[%emt 0:00:07]} c5 {[%emt 0:07:59]} 25. Bc7 {[%emt 0:00:20]} b5 {[%emt 0:00:01]} 26. axb5 {[%emt 0:00:54]} axb5 {[%emt 0:00:01]} 27. Bb6 {[%emt 0:00:40]} Nb3 {[%emt 0:05:39]} 28. Rd7+ {[%emt 0:01:19]} Kh6 {[%emt 0:00:08]} 29. Nxb5 {[%emt 0:01:04]} Rb8 {[%emt 0:03:54]} 30. Rd6 {[%emt 0:00:24]} Bxb2 {[%emt 0:00:01]} 31. Rc6 {[%emt 0:00:39]} Nd4 {[%emt 0:01:14]} 32. Nxd4 {[%emt 0:00:08]} Bxd4+ {[%emt 0:00:01]} 33. Kh1 {[%emt 0:00:51]} Kg5 {[%emt 0:05:17]} 34. g3 {[%emt 0:00:05]} Kf5 {[%emt 0:00:26]} 35. Kg2 {[%emt 0:00:43]} Ke4 {[%emt 0:00:33]} 36. Bxc5 {[%emt 0:00:21]} Rb2+ {[%emt 0:04:07]} 37. Kh3 {[%emt 0:00:44]} Rc2 {[%emt 0:01:04]} 38. Re6+ {[%emt 0:00:18]} Kf5 {[%emt 0:00:13]} 39. Bxd4 {[%emt 0:00:16]} Kxe6 {[%emt 0:00:05]} 40. g4 {[%emt 0:00:38]} Kd5 {[%emt 0:00:19]} 41. Bf6 {[%emt 0:00:40]} Ke4 {[%emt 0:00:47]} 42. Kg3 {[%emt 0:00:06]} Rc6 {[%emt 0:00:20]} 43. Bg7 {[%emt 0:00:25]} Rb6 {[%emt 0:00:14]} 44. h3 {[%emt 0:01:11]} Rb3+ {[%emt 0:00:05]} 45. Kh4 {[%emt 0:00:24]} Rf3 {[%emt 0:00:29]} 46. Bh6 {[%emt 0:00:35]} Kd3 {[%emt 0:00:13]} 47. g5 {[%emt 0:00:32]} Rf1 {[%emt 0:01:05]} 48. Kg3 {[%emt 0:00:20]} Ke4 {[%emt 0:00:05]} 49. Bg7 {[%emt 0:00:22]} Rg1+ {[%emt 0:00:14]} 50. Kh4 {[%emt 0:00:13]} Kf3 {[%emt 0:00:32]} 51. Be5 {[%emt 0:00:26]} Re1 {[%emt 0:00:23]} 52. Bf4 {[%emt 0:00:15]} Re2 {[%emt 0:00:06]} 0-1

[Event "Guimaraes Open 2019"]
[Site "Guimaraes"]
[Date "2019.08.28"]
[Round "1.21"]
[White "Forgas Moreno, Yaniela"]
[Black "Fernandes, Joao Pedro Murtinho"]
[Result "0-1"]
[ECO "B23"]
[WhiteElo "2276"]
[BlackElo "2044"]
[Annotator "ChessBase"]
[PlyCount "56"]
[EventDate "2019.08.28"]
[EventType "swiss"]
[EventCountry "POR"]
[SourceTitle "playchess.com"]
[Source "ChessBase"]
[SourceQuality "1"]
[TimeControl "5400+30"]

1. e4 c5 2. Nc3 e6 3. g3 Nc6 4. Bg2 Nf6 5. d3 Be7 6. f4 d5 7. e5 Nd7 8. Nf3 b5 9. O-O b4 10. Ne2 O-O 11. g4 f6 12. exf6 Nxf6 13. h3 Bd6 14. c4 bxc3 15. bxc3 Ba6 16. Re1 e5 17. fxe5 Nxe5 18. Nf4 Qb8 19. Nxe5 Bxe5 20. Nxd5 Nxd5 21. Bxd5+ Kh8 22. Qc2 Bxc3 23. Re6 Bxa1 24. Bxa8 Qxa8 25. Be3 Bc8 26. Re7 Qf3 27. Qg2 Qd1+ 28. Kh2 Bf6 0-1

[Event "Guimaraes Open 2019"]
[Site "Guimaraes"]
[Date "2019.08.28"]
[Round "1.25"]
[White "Lopez Gonzalez, Alfonso"]
[Black "Sanleon Pravisano, Nieves"]
[Result "1-0"]
[ECO "D20"]
[WhiteElo "2219"]
[BlackElo "1995"]
[Annotator "ChessBase"]
[PlyCount "83"]
[EventDate "2019.08.28"]
[EventType "swiss"]
[EventCountry "POR"]
[SourceTitle "playchess.com"]
[Source "ChessBase"]
[SourceQuality "1"]
[TimeControl "5400+30"]

1. d4 {[%emt 0:00:00]} d5 {[%emt 0:00:00]} 2. c4 {[%emt 0:00:00]} dxc4 {[%emt 0:00:00]} 3. e3 {[%emt 0:00:00]} Nf6 {[%emt 0:00:00]} 4. Bxc4 {[%emt 0:00:01]} e6 {[%emt 0:00:00]} 5. Nc3 {[%emt 0:01:29]} a6 {[%emt 0:01:02]} 6. a4 {[%emt 0:00:50]} c5 {[%emt 0:00:27]} 7. Nf3 {[%emt 0:01:12]} Nc6 {[%emt 0:00:18]} 8. O-O {[%emt 0:06:12]} cxd4 {[%emt 0:05:16]} 9. exd4 {[%emt 0:00:09]} Be7 {[%emt 0:01:49]} 10. Bg5 {[%emt 0:15:55]} Nd5 {[%emt 0:16:29]} 11. Bxe7 {[%emt 0:27:53]} Ncxe7 {[%emt 0:01:05]} 12. Bxd5 {[%emt 0:04:22]} Nxd5 {[%emt 0:00:36]} 13. Nxd5 Qxd5 {[%emt 0:00:07]} 14. Re1 {[%emt 0:00:17]} O-O {[%emt 0:04:30]} 15. Re5 {[%emt 0:01:36]} Qd6 {[%emt 0:00:20]} 16. Qd3 {[%emt 0:14:09]} f6 {[%emt 0:09:53]} 17. Rh5 {[%emt 0:04:03]} g6 {[%emt 0:02:32]} 18. Rc5 {[%emt 0:00:18]} Bd7 {[%emt 0:07:25]} 19. Nd2 {[%emt 0:02:26]} e5 {[%emt 0:05:46]} 20. Qc4+ {[%emt 0:04:16]} Kh8 {[%emt 0:00:53]} 21. Rd5 {[%emt 0:04:21]} Qe6 {[%emt 0:02:08]} 22. dxe5 {[%emt 0:01:15]} fxe5 {[%emt 0:00:30]} 23. Rd3 {[%emt 0:01:51]} Qxc4 {[%emt 0:03:32]} 24. Nxc4 {[%emt 0:00:04]} Bf5 {[%emt 0:00:24]} 25. Re3 {[%emt 0:03:04]} Rac8 {[%emt 0:03:52]} 26. Nxe5 {[%emt 0:01:46]} Rc2 {[%emt 0:00:14]} 27. b3 {[%emt 0:00:11]} Rfc8 {[%emt 0:00:24]} 28. g4 {[%emt 0:01:54]} Rc1+ 29. Rxc1 {[%emt 0:00:04]} Rxc1+ {[%emt 0:01:32]} 30. Kg2 {[%emt 0:00:03]} Bc2 {[%emt 0:00:32]} 31. Nc4 {[%emt 0:01:40]} Bxb3 {[%emt 0:02:11]} 32. Nb6 {[%emt 0:00:04]} Bc2 {[%emt 0:01:09]} 33. Kg3 {[%emt 0:01:59]} Ra1 {[%emt 0:02:14]} 34. Re8+ {[%emt 0:00:14]} Kg7 {[%emt 0:00:07]} 35. Re7+ {[%emt 0:00:03]} Kh8 {[%emt 0:01:50]} 36. Rxb7 {[%emt 0:01:09]} Bxa4 {[%emt 0:00:20]} 37. Ra7 {[%emt 0:01:03]} Bb5 {[%emt 0:00:56]} 38. Nd5 {[%emt 0:00:27]} Ra3+ {[%emt 0:06:05]} 39. Kf4 {[%emt 0:00:56]} Bd3 {[%emt 0:02:21]} 40. Nf6 {[%emt 0:00:50]} g5+ 41. Kxg5 {[%emt 0:00:04]} Bg6 {[%emt 0:02:00]} 42. f4 {[%emt 0:00:39]} 1-0

[Event "Guimaraes Open 2019"]
[Site "Guimaraes"]
[Date "2019.08.28"]
[Round "1.27"]
[White "Nieves Cabanes, Javier"]
[Black "Tevar Becerra, Alvaro"]
[Result "1-0"]
[ECO "A06"]
[WhiteElo "2211"]
[BlackElo "1990"]
[Annotator "ChessBase"]
[PlyCount "104"]
[EventDate "2019.08.28"]
[EventType "swiss"]
[EventCountry "POR"]
[SourceTitle "playchess.com"]
[Source "ChessBase"]
[SourceQuality "1"]
[TimeControl "5400+30"]

1. Nf3 {[%emt 0:00:00]} d5 {[%emt 0:00:09]} 2. c4 {[%emt 0:00:00]} e6 {[%emt 0:00:09]} 3. e3 {[%emt 0:00:11]} Nf6 {[%emt 0:00:10]} 4. b3 {[%emt 0:00:51]} Be7 {[%emt 0:00:10]} 5. Bb2 {[%emt 0:00:09]} O-O {[%emt 0:00:37]} 6. g3 {[%emt 0:01:06]} b6 {[%emt 0:00:07]} 7. Bg2 {[%emt 0:00:08]} Bb7 {[%emt 0:00:05]} 8. O-O {[%emt 0:00:41]} Nbd7 {[%emt 0:01:27]} 9. Nc3 {[%emt 0:01:13]} c5 {[%emt 0:01:14]} 10. Qe2 {[%emt 0:01:49]} Rc8 {[%emt 0:00:53]} 11. Rfd1 {[%emt 0:00:17]} Ne4 {[%emt 0:01:24]} 12. Rac1 {[%emt 0:02:52]} Bf6 {[%emt 0:05:00]} 13. cxd5 {[%emt 0:01:39]} Nxc3 {[%emt 0:03:15]} 14. Bxc3 {[%emt 0:06:21]} exd5 {[%emt 0:03:05]} 15. d4 {[%emt 0:00:29]} Qe7 {[%emt 0:03:15]} 16. Qb2 {[%emt 0:02:33]} Rfd8 {[%emt 0:02:20]} 17. dxc5 {[%emt 0:03:17]} Bxc3 {[%emt 0:00:57]} 18. Rxc3 {[%emt 0:01:11]} bxc5 {[%emt 0:00:54]} 19. Qa3 {[%emt 0:02:26]} Qf6 {[%emt 0:01:23]} 20. Rdc1 {[%emt 0:06:34]} Qb6 {[%emt 0:07:27]} 21. Bh3 {[%emt 0:04:25]} d4 {[%emt 0:13:41]} 22. exd4 {[%emt 0:00:13]} cxd4 {[%emt 0:10:23]} 23. Rxc8 {[%emt 0:01:06]} Bxc8 {[%emt 0:04:21]} 24. Qe7 {[%emt 0:04:05]} d3 {[%emt 0:06:15]} 25. Rxc8 {[%emt 0:12:56]} Rxc8 {[%emt 0:00:32]} 26. Qxd7 {[%emt 0:00:11]} Rd8 {[%emt 0:01:23]} 27. Qe7 {[%emt 0:00:26]} Rf8 {[%emt 0:04:14]} 28. Bf5 {[%emt 0:02:10]} Qc6 {[%emt 0:05:20]} 29. Qe3 {[%emt 0:00:33]} Qf6 {[%emt 0:06:49]} 30. Bxd3 {[%emt 0:01:07]} Qa1+ {[%emt 0:00:34]} 31. Kg2 {[%emt 0:00:06]} Qxa2 {[%emt 0:00:54]} 32. h4 {[%emt 0:00:50]} Qa5 {[%emt 0:01:32]} 33. Qe4 {[%emt 0:02:35]} g6 {[%emt 0:00:41]} 34. Bc4 {[%emt 0:00:16]} Qc7 {[%emt 0:02:08]} 35. h5 {[%emt 0:01:37]} Kg7 {[%emt 0:00:28]} 36. hxg6 {[%emt 0:01:03]} hxg6 {[%emt 0:00:59]} 37. Ng5 {[%emt 0:00:26]} Qd6 {[%emt 0:03:00]} 38. Qh4 {[%emt 0:03:44]} Qc6+ {[%emt 0:00:29]} 39. Kg1 {[%emt 0:01:11]} Rh8 {[%emt 0:03:15]} 40. Qd4+ {[%emt 0:00:31]} Qf6 {[%emt 0:01:01]} 41. Qxf6+ {[%emt 0:00:46]} Kxf6 {[%emt 0:00:01]} 42. Nxf7 {[%emt 0:00:13]} Rf8 {[%emt 0:01:49]} 43. f4 {[%emt 0:02:10]} Kf5 {[%emt 0:00:37]} 44. Kf2 {[%emt 0:01:21]} a5 {[%emt 0:02:40]} 45. Bd3+ {[%emt 0:02:44]} Kf6 {[%emt 0:00:22]} 46. Ne5 {[%emt 0:00:05]} Rd8 {[%emt 0:01:40]} 47. Bxg6 {[%emt 0:00:21]} Rd2+ {[%emt 0:00:06]} 48. Kf3 {[%emt 0:00:23]} Ra2 {[%emt 0:00:47]} 49. Be8 {[%emt 0:01:20]} Rc2 {[%emt 0:00:26]} 50. Ba4 {[%emt 0:00:51]} Rc3+ {[%emt 0:00:13]} 51. Kg4 {[%emt 0:00:15]} Ke6 {[%emt 0:00:30]} 52. Nc4 {[%emt 0:00:23]} Kd5 1-0

[Event "Guimaraes Open 2019"]
[Site "Guimaraes"]
[Date "2019.08.29"]
[Round "1.31"]
[White "Korning, Peter"]
[Black "Barros, Luis"]
[Result "1-0"]
[ECO "A04"]
[WhiteElo "1972"]
[BlackElo "1680"]
[Annotator "NA RC"]
[PlyCount "127"]
[EventDate "2019.08.28"]
[EventType "swiss"]
[EventCountry "POR"]
[SourceTitle "playchess.com"]
[Source "ChessBase"]
[SourceQuality "1"]
[TimeControl "5400+30"]

1. Nf3 {[%emt 0:00:00]} g6 {[%emt 0:00:00]} 2. g3 {[%emt 0:00:21]} Bg7 {[%emt 0:00:07]} 3. d4 {[%emt 0:00:38]} Nf6 {[%emt 0:00:15]} 4. Bg2 {[%emt 0:00:16]} d6 {[%emt 0:01:05]} 5. O-O {[%emt 0:00:12]} O-O {[%emt 0:00:55]} 6. c4 {[%emt 0:00:34]} Re8 {[%emt 0:01:00]} 7. Nc3 {[%emt 0:02:06]} c6 {[%emt 0:00:36]} 8. e4 {[%emt 0:04:37]} Na6 {[%emt 0:02:03]} 9. h3 {[%emt 0:02:44]} Nd7 {[%emt 0:01:49]} 10. Be3 {[%emt 0:02:53]} e5 {[%emt 0:01:08]} 11. Rc1 {[%emt 0:03:52]} Nc7 {[%emt 0:02:53]} 12. Qd2 {[%emt 0:03:15]} Ne6 {[%emt 0:05:06]} 13. d5 {[%emt 0:05:50]} cxd5 {[%emt 0:05:48]} 14. cxd5 {[%emt 0:02:33]} Nef8 {[%emt 0:01:33]} (14... Nc7 $16) 15. Nb5 {[%emt 0:04:18]} Nf6 {[%emt 0:01:18]} 16. Nc7 {[%emt 0:05:49]} Nxe4 {[%emt 0:02:26]} 17. Qb4 {[%emt 0:00:54]} Nf6 {[%emt 0:09:53]} 18. Rfd1 {[%emt 0:03:32]} ({Don't do} 18. Nxe8 $6 Nxe8 19. Nd2 b6 $16) 18... e4 {[%emt 0:01:49]} 19. Ne1 {[%emt 0:06:28]} Re5 {[%emt 0:01:31]} 20. Qb3 {[%emt 0:03:24]} Rh5 {[%emt 0:03:37]} 21. Nxa8 {[%emt 0:05:17]} Bxh3 {[%emt 0:01:15]} 22. Bxh3 {[%emt 0:03:50]} Rxh3 {[%emt 0:00:13]} 23. Qxb7 {[%emt 0:01:27]} Ng4 {[%emt 0:03:54]} 24. Qc8 {[%emt 0:04:19]} Qxc8 {[%emt 0:06:10]} 25. Rxc8 {[%emt 0:00:02]} Nxe3 {[%emt 0:00:50]} 26. fxe3 {[%emt 0:00:10]} Rxg3+ {[%emt 0:00:59]} 27. Kf2 {[%emt 0:01:28]} Be5 {[%emt 0:04:30]} 28. Re8 {[%emt 0:04:09]} Rg5 {[%emt 0:01:11]} 29. Nc7 {[%emt 0:04:23]} h5 {[%emt 0:02:27]} 30. Ng2 {[%emt 0:04:06]} Rg4 {[%emt 0:02:23]} 31. Rxe5 {[%emt 0:01:45]} dxe5 {[%emt 0:00:42]} 32. d6 {[%emt 0:02:15]} Nd7 {[%emt 0:00:46]} 33. Nd5 {[%emt 0:00:36]} f5 {[%emt 0:00:44]} 34. Rc1 {[%emt 0:00:35]} Kf7 {[%emt 0:04:32]} 35. Rc7 {[%emt 0:00:26]} Ke6 {[%emt 0:00:43]} 36. Rxd7 {[%emt 0:00:58]} Kxd5 {[%emt 0:00:36]} 37. Rxa7 {[%emt 0:00:39]} Kxd6 {[%emt 0:00:28]} 38. a4 {[%emt 0:01:06]} f4 {[%emt 0:01:03]} 39. Ra6+ {[%emt 0:01:41]} Kc7 {[%emt 0:00:27]} 40. Re6 {[%emt 0:04:48]} f3 {[%emt 0:01:15]} 41. Ne1 {[%emt 0:00:28]} Rg5 {[%emt 0:00:33]} 42. Nxf3 {[%emt 0:01:53]} exf3 {[%emt 0:01:01]} 43. Kxf3 {[%emt 0:00:13]} h4 {[%emt 0:01:17]} 44. Re7+ {[%emt 0:00:14]} Kb6 {[%emt 0:00:56]} 45. Rh7 {[%emt 0:00:21]} Rg3+ {[%emt 0:01:00]} 46. Kf2 {[%emt 0:01:21]} g5 {[%emt 0:01:15]} 47. b4 {[%emt 0:02:12]} Rg4 {[%emt 0:00:36]} 48. Rh6+ {[%emt 0:00:17]} Kc7 {[%emt 0:00:40]} 49. Rh7+ {[%emt 0:01:13]} Kd6 {[%emt 0:00:21]} 50. Rh6+ {[%emt 0:00:34]} Ke7 {[%emt 0:00:15]} 51. a5 {[%emt 0:02:09]} Rxb4 {[%emt 0:01:05]} 52. a6 {[%emt 0:00:03]} Ra4 {[%emt 0:01:19] [#]} 53. a7 $11 {[%emt 0:00:08]} Kf7 {[%emt 0:00:36]} 54. Rh8 {[%emt 0:00:07]} Kg6 {[%emt 0:05:06]} 55. a8=Q {[%emt 0:00:09]} Rxa8 {[%emt 0:00:12]} 56. Rxa8 {[%emt 0:00:02]} Kf5 {[%emt 0:01:44]} 57. Rh8 Ke4 {[%emt 0:00:22]} 58. Rh5 {[%emt 0:02:22]} Kf5 {[%emt 0:00:18]} 59. Kf3 {[%emt 0:00:36]} e4+ 60. Kg2 Kg4 {[%emt 0:01:08]} 61. Rh8 {[%emt 0:00:06]} Kf5 {[%emt 0:00:22]} 62. Kh3 {[%emt 0:00:36]} Kg6 {[%emt 0:04:21]} 63. Kg4 {[%emt 0:00:02]} Kg7 {[%emt 0:01:08]} 64. Rh5 {[%emt 0:00:20]} 1-0